bitfinex/quotes_SOLUSD_20250903
["timestamp","ask_amount","ask_price","bid_price","bid_amount"]
[1756923809485,72.15464113,210.62,210.61,0.03]
[1756923809680,86.43253657,210.62,210.61,0.03]
[1756923810804,91.18042376,210.62,210.61,0.03]
[1756923814612,86.52625293,210.62,210.61,0.03]
[1756923814940,91.18042376,210.62,210.61,0.03]
[1756923819513,85.80625293,210.62,210.61,0.03]
[1756923819728,89.50693992,210.62,210.61,0.03]
[1756923820017,51.46693992,210.62,210.61,0.03]
[1756923820204,88.74693992,210.62,210.61,0.03]
[1756923821619,89.46693992,210.62,210.61,0.03]
[1756923822925,88.74693992,210.62,210.61,0.03]
[1756923823101,85.76625293,210.62,210.61,0.03]
[1756923823307,88.74693992,210.62,210.61,0.03]
[1756923823708,59.28646962,210.62,210.61,0.72]
[1756923823907,45.00857418,210.62,210.61,0.72]
[1756923824308,47.98926117,210.62,210.61,0.72]
[1756923825427,45.00857418,210.62,210.61,0.72]
[1756923825618,47.98926117,210.62,210.61,0.72]
[1756923826004,7.72857418,210.62,210.61,0.72]
[1756923826409,0.06,210.63,210.61,0.72]
[1756923829308,0.06,210.63,210.61,3.70068699]
[1756923829507,0.06,210.63,210.62,0.69]
[1756923829839,0.06,210.63,210.62,3.67068699]
[1756923831414,0.06,210.63,210.62,0.69]
[1756923831610,0.06,210.63,210.62,8.41857418]
[1756923832210,0.06,210.63,210.62,3.67068699]
[1756923833926,0.06,210.63,210.62,0.69]
[1756923834125,0.06,210.63,210.62,3.67068699]
[1756923838714,0.06,210.63,210.62,22.01416819]
[1756923840025,0.06,210.63,210.62,59.17416819]
[1756923841425,0.06,210.63,210.62,59.15416819]
[1756923843448,0.06,210.63,210.62,59.13416819]
[1756923843633,0.06,210.63,210.62,22.01416819]
[1756923843832,0.06,210.63,210.62,54.386281]
[1756923844033,0.06,210.63,210.62,59.13416819]
[1756923844547,0.06,210.63,210.62,22.01416819]
[1756923844740,0.06,210.63,210.62,59.13416819]
[1756923847647,0.06,210.63,210.62,59.11416819]
[1756923849152,0.06,210.63,210.62,37.08]
[1756923850144,0.06,210.63,210.61,0.03]
[1756923850729,0.06,210.63,210.62,37.06]
[1756923851232,0.06,210.63,210.61,0.03]
[1756923851432,0.06,210.63,210.62,37.06]
[1756923851638,0.73,210.63,210.62,37.06]
[1756923851840,0.73,210.63,210.61,0.03]
[1756923852040,0.73,210.63,210.62,37.04]
[1756923852932,0.06,210.63,210.62,37.04]
[1756923853850,4.80766177,210.63,210.62,37.04]
[1756923854244,0.06,210.63,210.62,37.02]
[1756923854648,0.06,210.63,210.61,3.01068699]
[1756923854842,0.06,210.63,210.62,37.02]
[1756923858056,0.06,210.63,210.62,37.0]
[1756923859251,0.06,210.63,210.61,3.01068699]
[1756923859452,0.06,210.63,210.61,0.03]
[1756923859756,0.68,210.62,210.61,0.03]
[1756923860058,3.66068699,210.62,210.61,0.03]
[1756923860555,0.68,210.62,210.61,0.03]
[1756923861458,5.42788719,210.62,210.61,0.03]
[1756923862249,8.60715661,210.62,210.61,0.03]
[1756923862648,11.5878436,210.62,210.61,0.03]
[1756923863061,3.17926942,210.62,210.61,0.03]
[1756923863667,8.60715661,210.62,210.61,0.03]
[1756923863847,11.5878436,210.62,210.61,0.03]
[1756923868441,48.5278436,210.62,210.61,0.03]
[1756923869171,11.5878436,210.62,210.61,0.03]
[1756923870348,13.49129122,210.62,210.61,0.03]
[1756923872275,13.77561436,210.62,210.61,0.03]
[1756923872473,0.28432314,210.59,210.58,0.03]
[1756923872642,43.38427955,210.59,210.58,0.03]
[1756923872848,44.06427955,210.59,210.58,0.03]
[1756923873056,13.7766531,210.59,210.58,0.03]
[1756923873256,50.7166531,210.59,210.58,0.03]
[1756923877772,12.81232996,210.59,210.58,0.03]
[1756923877953,49.75232996,210.59,210.58,0.03]
[1756923878465,26.0,210.57,210.56,0.03]
[1756923878651,32.15995641,210.57,210.56,0.03]
[1756923878854,32.83995641,210.57,210.56,0.03]
[1756923879055,72.7606434,210.57,210.56,0.03]
[1756923879278,68.90137398,210.57,210.56,0.03]
[1756923879569,70.57881508,210.57,210.56,0.03]
[1756923879777,71.25881508,210.57,210.56,0.03]
[1756923880073,76.00782965,210.57,210.56,0.03]
[1756923880580,75.32782965,210.57,210.56,0.03]
[1756923881259,67.68901457,210.57,210.56,0.68]
[1756923881460,72.34714266,210.57,210.56,0.03]
[1756923883668,35.40714266,210.57,210.56,0.03]
[1756923883870,77.00527075,210.57,210.56,0.03]
[1756923884076,77.67527075,210.57,210.56,0.03]
[1756923885298,94.730123,210.57,210.56,0.03]
[1756923887364,90.07199491,210.57,210.56,0.03]
[1756923887562,94.730123,210.57,210.56,0.03]
[1756923887782,57.790123,210.57,210.56,0.03]
[1756923887990,90.07199491,210.57,210.56,0.03]
[1756923888154,57.790123,210.57,210.56,0.03]
[1756923888355,90.07199491,210.57,210.56,0.03]
[1756923888568,57.790123,210.57,210.56,0.03]
[1756923888865,94.730123,210.57,210.56,0.03]
[1756923889078,57.790123,210.57,210.56,0.03]
[1756923889281,94.730123,210.57,210.56,0.03]
[1756923890277,57.790123,210.57,210.56,0.03]
[1756923890468,94.730123,210.57,210.56,0.03]
[1756923890784,94.790123,210.57,210.56,0.03]
[1756923891666,57.850123,210.57,210.56,0.03]
[1756923891867,94.790123,210.57,210.56,0.03]
[1756923895290,57.850123,210.57,210.56,0.03]
[1756923895490,94.790123,210.57,210.56,0.03]
[1756923897188,90.13199491,210.57,210.56,0.03]
[1756923897382,94.790123,210.57,210.56,0.03]
[1756923897579,75.8664009,210.57,210.56,0.72]
[1756923897780,77.06527075,210.57,210.56,0.72]
[1756923897990,80.52542862,210.57,210.56,0.03]
[1756923898581,43.58542862,210.57,210.56,0.72]
[1756923898786,40.12527075,210.57,210.56,0.72]
[1756923898988,77.06527075,210.57,210.56,0.72]
[1756923899190,80.24096138,210.57,210.56,0.72]
[1756923899383,75.58283329,210.57,210.56,0.72]
[1756923899699,80.24096138,210.57,210.56,0.72]
[1756923900017,80.24096138,210.57,210.56,0.03]
[1756923900205,43.30096138,210.57,210.56,0.72]
[1756923900370,63.0,210.57,210.56,0.72]
[1756923900571,67.65812809,210.57,210.56,0.72]
[1756923900795,72.40714266,210.57,210.56,0.72]
[1756923901101,75.58241728,210.57,210.56,0.72]
[1756923902391,75.58241728,210.57,210.56,0.03]
[1756923903318,90.13233443,210.57,210.56,0.03]
[1756923903493,57.15789216,210.57,210.56,0.03]
[1756923903894,85.47420634,210.57,210.56,0.03]
[1756923904208,94.09789216,210.57,210.56,0.03]
[1756923904414,53.19233443,210.57,210.56,0.03]
[1756923904614,90.13233443,210.57,210.56,0.03]
[1756923904917,53.19233443,210.57,210.56,0.03]
[1756923905105,90.13233443,210.57,210.56,0.03]
[1756923905991,53.19233443,210.57,210.56,0.03]
[1756923906196,90.13233443,210.57,210.56,0.03]
[1756923907096,53.19233443,210.57,210.56,0.03]
[1756923907294,38.92674042,210.57,210.56,0.03]
[1756923907508,75.86674042,210.57,210.56,0.03]
[1756923908197,76.53674042,210.57,210.56,0.03]
[1756923908521,38.92674042,210.57,210.56,0.03]
[1756923908897,38.92674042,210.57,210.56,0.72]
[1756923908898,49.72457885,210.57,210.56,0.72]
[1756923909091,49.58241728,210.57,210.56,0.72]
[1756923909615,12.64241728,210.57,210.56,0.72]
[1756923909808,49.58241728,210.57,210.56,0.72]
[1756923910408,12.64241728,210.57,210.56,0.72]
[1756923910611,49.58241728,210.57,210.56,0.72]
[1756923913026,3.23527462,210.57,210.56,0.72]
[1756923913317,0.06,210.57,210.56,0.72]
[1756923913526,3.2397774,210.57,210.56,0.72]
[1756923914108,44.83790549,210.57,210.56,0.72]
[1756923914433,40.1797774,210.57,210.56,0.72]
[1756923915815,3.2397774,210.57,210.56,0.72]
[1756923916605,3.2397774,210.57,210.56,0.03]
[1756923916808,13.5912432,210.57,210.56,0.03]
[1756923917011,17.55680093,210.57,210.56,0.03]
[1756923918014,59.24696389,210.57,210.56,0.03]
[1756923918708,22.30696389,210.57,210.56,0.03]
[1756923919143,59.24696389,210.57,210.56,0.03]
[1756923919430,22.30696389,210.57,210.56,0.03]
[1756923919610,59.24696389,210.57,210.56,0.03]
[1756923921032,68.87700017,210.57,210.39,26.0]
[1756923921332,4.65812809,210.47,210.46,0.71]
[1756923921514,41.69127096,210.47,210.46,0.71]
[1756923921707,46.34939905,210.47,210.46,0.71]
[1756923923546,9.40939905,210.47,210.46,0.71]
[1756923923720,4.65812809,210.48,210.46,0.71]
[1756923923905,9.40911848,210.49,210.47,0.71]
[1756923924103,4.75062105,210.5,210.44,4.65812809]
[1756923924307,4.65812809,210.51,210.45,4.65812809]
[1756923924506,40.11945387,210.5,210.45,4.65812809]
[1756923924813,36.94,210.5,210.46,0.71]
[1756923925014,36.94,210.49,210.46,0.71]
[1756923925702,41.69085769,210.49,210.46,0.71]
[1756923925902,46.34898578,210.49,210.47,0.71]
[1756923926523,4.65812809,210.48,210.47,0.71]
[1756923928221,9.40917331,210.48,210.47,0.71]
[1756923928423,46.34917331,210.48,210.47,0.71]
[1756923928621,46.34917331,210.48,210.43,0.03]
[1756923928819,46.34917331,210.48,210.44,0.71]
[1756923929023,46.34917331,210.48,210.45,0.71]
[1756923929838,46.34917331,210.48,210.46,0.71]
[1756923930328,4.75104522,210.48,210.47,0.71]
[1756923930532,46.34917331,210.48,210.44,0.71]
[1756923930833,46.34917331,210.48,210.43,0.03]
[1756923930834,41.59812809,210.47,210.45,0.71]
[1756923931018,4.65812809,210.46,210.45,0.71]
[1756923932035,46.34962481,210.46,210.45,0.71]
[1756923932828,41.69149672,210.46,210.45,0.71]
[1756923933942,4.75126149,210.48,210.45,5.36812809]
[1756923934144,36.94,210.46,210.45,4.65812809]
[1756923934314,30.75084921,210.49,210.45,4.65812809]
[1756923934641,30.65812809,210.5,210.46,0.71]
[1756923934854,26.0,210.5,210.46,0.71]
[1756923935145,36.94,210.49,210.46,0.71]
[1756923935445,4.75220562,210.51,210.47,4.65812809]
[1756923935737,4.75220562,210.51,210.43,4.78195714]
[1756923935738,36.94,210.5,210.48,0.71]
[1756923935929,36.94,210.5,210.49,0.71]
[1756923936943,36.94,210.51,210.49,0.71]
[1756923937123,36.94,210.51,210.46,4.65812809]
[1756923937331,36.94,210.51,210.47,0.71]
[1756923937639,36.94,210.51,210.48,0.71]
[1756923938644,41.69040731,210.51,210.49,0.71]
[1756923939021,4.75040731,210.51,210.49,0.71]
[1756923939337,36.94,210.5,210.47,4.65812809]
[1756923939540,36.94,210.5,210.48,0.71]
[1756923942032,41.69063053,210.5,210.46,0.68]
[1756923942240,41.69063053,210.5,210.45,2.98208455]
[1756923942434,41.69063053,210.5,210.43,4.78214013]
[1756923942435,36.94,210.49,210.47,0.68]
[1756923943840,41.69063053,210.5,210.47,0.68]
[1756923946636,42.38063053,210.5,210.45,3.69208455]
[1756923946828,41.69063053,210.5,210.46,0.68]
[1756923947030,41.69063053,210.5,210.45,3.01208455]
[1756923947358,36.94,210.49,210.46,3.66208455]
[1756923947817,36.94,210.49,210.46,2.98208455]
[1756923948021,36.94,210.5,210.47,3.66208455]
[1756923948249,36.94,210.51,210.48,3.66208455]
[1756923948428,28.98208455,210.53,210.49,0.68]
[1756923948620,62.94,210.53,210.5,0.68]
[1756923948821,62.94,210.53,210.49,2.98208455]
[1756923949021,62.94,210.53,210.5,0.68]
[1756923949246,26.0,210.53,210.51,0.68]
[1756923949442,0.69,210.53,210.48,0.68]
[1756923949619,36.92,210.52,210.48,0.68]
[1756923949824,36.92,210.52,210.48,3.66208455]
[1756923950026,3.67208455,210.53,210.49,0.68]
[1756923950328,9.50097647,210.55,210.5,0.68]
[1756923950532,36.92,210.54,210.51,2.98208455]
[1756923950750,36.92,210.54,210.51,3.66208455]
[1756923950948,36.92,210.55,210.52,0.68]
[1756923951151,12.48283185,210.56,210.52,0.68]
[1756923951347,3.17929117,210.55,210.52,0.68]
[1756923951530,70.71354278,210.57,210.53,0.68]
[1756923951735,6.1617541,210.56,210.53,0.68]
[1756923951952,2.98208455,210.56,210.53,0.68]
[1756923952452,70.71114878,210.57,210.53,0.68]
[1756923952629,3.18027323,210.56,210.53,0.68]
[1756923952837,71.40114878,210.57,210.53,0.68]
[1756923953037,3.18027323,210.56,210.53,0.68]
[1756923953232,68.41906423,210.57,210.53,0.68]
[1756923953549,71.40114878,210.57,210.53,0.68]
[1756923954245,0.06,210.57,210.54,3.66208455]
[1756923954555,0.06,210.57,210.55,3.66208455]
[1756923954757,0.06,210.57,210.55,0.68]
[1756923955050,0.06,210.57,210.56,0.68]
[1756923955454,0.06,210.57,210.54,0.68]
[1756923955824,2.98208455,210.55,210.51,0.68]
[1756923956256,3.67208455,210.55,210.51,0.68]
[1756923956453,2.98208455,210.55,210.52,0.68]
[1756923956956,3.67208455,210.54,210.49,0.68]
[1756923957256,2.98208455,210.54,210.5,0.68]
[1756923957448,0.69,210.56,210.48,28.98208455]
[1756923957449,2.98208455,210.55,210.51,0.68]
[1756923957752,36.98,210.57,210.49,3.66208455]
[1756923957753,8.42177582,210.54,210.49,3.66208455]
[1756923957953,8.42177582,210.54,210.5,0.68]
[1756923958124,7.73177582,210.54,210.5,0.68]
[1756923958328,8.42177582,210.54,210.5,0.68]
[1756923959358,0.69,210.53,210.48,2.98208455]
[1756923959649,4.74969127,210.54,210.49,3.66208455]
[1756923959852,7.73177582,210.54,210.5,0.68]
[1756923960069,8.42177582,210.54,210.49,2.98208455]
[1756923960229,0.69,210.53,210.48,2.98208455]
[1756923960430,2.98208455,210.52,210.46,13.59559401]
[1756923960656,2.98208455,210.52,210.48,0.68]
[1756923960828,3.67208455,210.52,210.46,2.98208455]
[1756923961029,2.98208455,210.51,210.46,3.66208455]
[1756923961226,3.67208455,210.5,210.45,0.03]
[1756923961654,0.69,210.49,210.45,0.03]
[1756923961842,4.75104522,210.48,210.45,0.03]
[1756923962038,5.44104522,210.48,210.45,0.03]
[1756923962246,43.5641691,210.51,210.46,0.68]
[1756923962444,39.90208455,210.51,210.46,3.66208455]
[1756923962651,40.59208455,210.51,210.47,0.68]
[1756923962854,39.90208455,210.51,210.46,2.98208455]
[1756923963055,40.59208455,210.51,210.46,3.66208455]
[1756923963235,45.34254195,210.51,210.46,3.66208455]
[1756923963654,2.98208455,210.52,210.47,0.68]
[1756923963854,3.17994287,210.51,210.48,2.98208455]
[1756923964036,36.98,210.53,210.49,3.66208455]
[1756923964239,0.69,210.52,210.48,2.98208455]
[1756923964456,0.69,210.52,210.48,3.66208455]
[1756923964757,0.06,210.53,210.48,2.98208455]
[1756923964949,0.06,210.53,210.49,3.66208455]
[1756923965839,5.4999525,210.53,210.49,3.66208455]
[1756923966565,5.4999525,210.53,210.49,0.68]
[1756923967053,8.48203705,210.53,210.49,0.68]
[1756923967861,0.69,210.52,210.48,2.98208455]
[1756923968158,4.75029328,210.52,210.46,0.68]
[1756923968362,0.69,210.51,210.46,3.66208455]
[1756923968760,0.69,210.51,210.47,0.68]
[1756923969549,0.69,210.5,210.45,3.69208455]
[1756923969755,0.69,210.5,210.46,3.66208455]
[1756923969965,5.44075321,210.5,210.46,3.66208455]
[1756923970372,4.75041872,210.51,210.47,0.68]
[1756923970549,4.75041872,210.51,210.46,2.98208455]
[1756923970550,5.44041872,210.51,210.46,2.98208455]
[1756923970756,5.44041872,210.51,210.46,3.66208455]
[1756923971062,5.44041872,210.51,210.47,0.68]
[1756923971361,4.75041872,210.51,210.46,2.98208455]
[1756923971557,0.69,210.5,210.46,0.68]
[1756923972166,5.44070496,210.5,210.46,0.68]
[1756923975283,4.75070496,210.5,210.45,3.01208455]
[1756923975642,5.42070496,210.5,210.46,0.66]
[1756923976267,4.75070496,210.5,210.45,3.01208455]
[1756923976569,5.42093575,210.49,210.45,0.03]
[1756923976942,5.42093575,210.49,210.45,0.69]
[1756923977771,4.75093575,210.49,210.45,0.03]
[1756923978074,4.75093575,210.49,210.45,0.69]
[1756923978075,5.42093575,210.49,210.45,0.69]
[1756923979270,4.75093575,210.49,210.45,0.03]
[1756923979480,0.67,210.48,210.45,0.03]
[1756923981368,5.42106827,210.48,210.45,0.03]
[1756923981768,8.40315282,210.48,210.45,0.03]
[1756923981967,5.42140276,210.47,210.45,0.03]
[1756923983277,0.67,210.47,210.45,0.03]
[1756923983481,4.75107116,210.48,210.45,0.03]
[1756923983687,5.42107116,210.48,210.45,0.03]
[1756923983852,0.67,210.47,210.45,0.03]
[1756923984054,4.75107116,210.48,210.45,0.03]
[1756923984462,5.42107116,210.48,210.45,0.03]
[1756923985378,0.67,210.47,210.45,0.03]
[1756923985552,27.90453517,210.5,210.45,0.03]
[1756923985757,3.17849154,210.49,210.45,0.69]
[1756923986062,0.67,210.49,210.45,0.69]
[1756923987257,5.42087472,210.49,210.45,0.69]
[1756923988571,4.75087472,210.49,210.45,0.03]
[1756923988761,0.67,210.48,210.45,0.03]
[1756923988959,0.67,210.48,210.45,0.69]
[1756923989163,0.67,210.48,210.45,0.03]
[1756923989662,0.67,210.47,210.45,0.03]
[1756923990570,7.325189,210.5,210.46,0.66]
[1756923990760,0.67,210.49,210.45,3.01208455]
[1756923991087,29.65208455,210.51,210.46,0.66]
[1756923991272,0.67,210.5,210.46,3.64208455]
[1756923991477,0.67,210.49,210.45,3.01208455]
[1756923991882,0.67,210.49,210.45,3.67208455]
[1756923992986,0.67,210.49,210.45,0.69]
[1756923993179,0.67,210.48,210.45,3.01208455]
[1756923993970,0.67,210.48,210.45,0.03]
[1756923994782,0.67,210.47,210.45,0.03]
[1756923995166,0.67,210.46,210.45,0.03]
[1756923995783,4.75109472,210.48,210.45,0.03]
[1756923995984,5.42109472,210.48,210.45,0.03]
[1756923998867,0.67,210.47,210.45,0.03]
[1756923999584,8.42317927,210.48,210.45,0.03]
[1756923999787,9.09317927,210.48,210.45,0.03]
[1756924000180,5.42109472,210.48,210.45,0.03]
[1756924000775,0.67,210.48,210.45,0.03]
[1756924001087,3.67208455,210.49,210.46,0.66]
[1756924001288,3.18261166,210.48,210.46,0.66]
[1756924001589,5.38995651,210.53,210.47,5.31995651]
[1756924001789,3.18422215,210.52,210.47,5.31995651]
[1756924001995,3.18422215,210.51,210.48,0.68]
[1756924002177,3.18422215,210.5,210.48,0.68]
[1756924002494,50.02199573,210.53,210.49,0.68]
[1756924002792,3.1848416,210.52,210.49,0.68]
[1756924002982,3.1848416,210.51,210.49,0.68]
[1756924003165,50.02199573,210.53,210.49,0.68]
[1756924003370,3.18535628,210.52,210.49,0.68]
[1756924003693,45.27204106,210.53,210.5,0.68]
[1756924003694,3.18535628,210.51,210.5,0.68]
[1756924003881,0.06,210.53,210.5,4.65995651]
[1756924004080,0.06,210.53,210.51,0.68]
[1756924006285,0.06,210.53,210.52,0.68]
[1756924008477,0.06,210.53,210.52,10.09009901]
[1756924009083,0.06,210.53,210.52,23.68569302]
[1756924009809,0.06,210.53,210.52,25.58905007]
[1756924014706,0.06,210.53,210.52,62.46905007]
[1756924016216,0.06,210.53,210.52,62.49905007]
[1756924018008,0.06,210.53,210.52,20.95909356]
[1756924018218,0.06,210.53,210.52,25.61905007]
[1756924018397,0.06,210.53,210.52,24.93905007]
[1756924018602,0.06,210.53,210.52,20.18890757]
[1756924019110,0.06,210.53,210.52,6.59331356]
[1756924019316,0.06,210.53,210.52,0.03]
[1756924020129,0.06,210.53,210.52,4.68995651]
[1756924020908,0.06,210.53,210.52,0.03]
[1756924020909,0.73,210.53,210.52,0.03]
[1756924021216,0.06,210.53,210.52,0.03]
[1756924021593,0.73,210.53,210.52,0.03]
[1756924022013,5.47991687,210.53,210.52,0.03]
[1756924023506,0.73,210.53,210.52,0.03]
[1756924024522,0.06,210.53,210.52,0.03]
[1756924026018,0.06,210.53,210.52,4.68995651]
[1756924026395,0.73,210.53,210.52,0.03]
[1756924026996,0.06,210.53,210.52,0.03]
[1756924028528,0.73,210.53,210.52,0.03]
[1756924029020,0.06,210.53,210.52,0.03]
[1756924029424,0.73,210.53,210.52,0.03]
[1756924030406,5.38995651,210.53,210.52,0.03]
[1756924031130,8.56489643,210.53,210.52,0.03]
[1756924031505,13.3148133,210.53,210.52,0.03]
[1756924032210,18.77646877,210.53,210.52,0.03]
[1756924040112,55.61646877,210.53,210.52,0.03]
[1756924042238,55.90079191,210.53,210.52,0.03]
[1756924043718,19.06079191,210.53,210.52,0.03]
[1756924044143,55.90079191,210.53,210.52,0.03]
[1756924045335,19.06079191,210.53,210.52,0.03]
[1756924045730,55.90079191,210.53,210.52,0.03]
[1756924046444,19.06079191,210.53,210.52,0.03]
[1756924046636,55.90079191,210.53,210.52,0.03]
[1756924046844,19.06079191,210.53,210.52,0.03]
[1756924047018,44.10646877,210.53,210.52,0.03]
[1756924047218,8.69659539,210.53,210.52,0.72]
[1756924047429,42.36165547,210.53,210.52,0.72]
[1756924048631,47.11157234,210.53,210.52,0.03]
[1756924050740,10.27157234,210.53,210.52,0.03]
[1756924050945,47.11157234,210.53,210.52,0.03]
[1756924051335,47.11157234,210.53,210.52,0.72]
[1756924051531,42.36165547,210.53,210.52,0.72]
[1756924052232,0.06,210.53,210.52,5.37995651]
[1756924052442,0.06,210.53,210.52,0.72]
[1756924062357,3.2469844,210.53,210.52,0.72]
[1756924063760,3.2469844,210.53,210.52,3.70098095]
[1756924064072,3.2469844,210.53,210.52,0.72]
[1756924064229,3.2469844,210.53,210.52,3.70098095]
[1756924064428,0.06,210.53,210.52,8.45112345]
[1756924064637,0.06,210.53,210.52,3.70098095]
[1756924066956,3.24653209,210.53,210.52,0.03]
[1756924067265,3.24649935,210.53,210.52,0.03]
[1756924067839,3.24649935,210.53,210.52,0.73]
[1756924069138,3.24649935,210.53,210.52,0.03]
[1756924069441,7.99641622,210.53,210.52,0.03]
[1756924070951,3.24649935,210.53,210.52,0.73]
[1756924072543,3.24649935,210.53,210.52,3.71098095]
[1756924072756,0.06,210.53,210.52,0.73]
[1756924073657,0.06,210.53,210.52,0.03]
[1756924073964,0.06,210.53,210.52,0.73]
[1756924074854,0.06,210.53,210.52,3.71098095]
[1756924075056,3.24593393,210.53,210.52,0.03]
[1756924075968,7.9958508,210.53,210.52,0.03]
[1756924080467,3.24593393,210.53,210.52,0.03]
[1756924080764,7.9958508,210.53,210.52,0.03]
[1756924081354,8.7158508,210.53,210.52,0.03]
[1756924081558,7.9958508,210.53,210.52,0.03]
[1756924081757,8.7158508,210.53,210.52,0.03]
[1756924081954,11.69683175,210.53,210.52,0.03]
[1756924083061,48.78115489,210.53,210.52,0.03]
[1756924083376,50.68550872,210.53,210.52,0.03]
[1756924083974,54.65883083,210.53,210.52,0.03]
[1756924085195,50.68550872,210.53,210.52,0.03]
[1756924089092,54.66514548,210.53,210.52,0.03]
[1756924097894,17.86514548,210.53,210.52,0.03]
[1756924098099,50.68550872,210.53,210.52,0.03]
[1756924099998,13.88550872,210.53,210.52,0.03]
[1756924100220,64.28110273,210.53,210.52,0.03]
[1756924100504,64.28110273,210.53,210.49,1e-08]
[1756924100505,39.87991715,210.5,210.49,1e-08]
[1756924100794,82.84683203,210.5,210.49,1e-08]
[1756924101119,87.5388973,210.5,210.49,1e-08]
[1756924101282,89.44388598,210.5,210.49,1e-08]
[1756924101480,85.47182071,210.5,210.49,1e-08]
[1756924101906,44.97083976,210.5,210.49,1e-08]
[1756924102201,89.50241453,210.5,210.49,1e-08]
[1756924102576,90.22241453,210.5,210.49,1e-08]
[1756924103272,102.14633833,210.5,210.49,1e-08]
[1756924103490,0.28432314,210.49,210.47,0.03]
[1756924103690,102.14633833,210.5,210.47,0.03]
[1756924103691,68.77075583,210.48,210.47,0.03]
[1756924103909,69.49075583,210.48,210.47,0.03]
[1756924104102,71.39592599,210.48,210.47,0.03]
[1756924104292,76.14697121,210.48,210.47,0.03]
[1756924105209,39.34697121,210.48,210.47,0.03]
[1756924105500,76.14697121,210.48,210.47,0.03]
[1756924110589,75.42697121,210.48,210.47,0.03]
[1756924110900,76.14697121,210.48,210.47,0.03]
[1756924111196,39.34697121,210.48,210.47,0.03]
[1756924111503,76.13465859,210.48,210.47,0.03]
[1756924112803,75.41465859,210.48,210.47,0.03]
[1756924112995,76.13465859,210.48,210.47,0.03]
[1756924113397,39.33465859,210.48,210.47,0.03]
[1756924113609,76.11465859,210.48,210.47,0.03]
[1756924119193,28.98098095,210.46,210.45,1e-08]
[1756924119395,68.93460226,210.46,210.45,1e-08]
[1756924119904,70.83977241,210.46,210.45,1e-08]
[1756924120109,70.83977241,210.46,210.43,0.03]
[1756924120110,0.28432314,210.45,210.43,0.03]
[1756924120409,43.2189254,210.44,210.43,0.03]
[1756924120802,46.19990635,210.44,210.43,0.03]
[1756924121098,50.95185464,210.44,210.43,0.03]
[1756924123785,54.72950135,210.44,210.43,0.03]
[1756924123989,55.39950135,210.44,210.43,0.03]
[1756924125607,57.08385558,210.44,210.43,0.03]
[1756924125811,53.30935332,210.44,210.43,0.03]
[1756924126310,47.97401814,210.44,210.43,0.03]
[1756924126487,52.63935332,210.44,210.43,0.03]
[1756924126994,53.30935332,210.44,210.43,0.03]
[1756924127594,52.63935332,210.44,210.43,0.03]
[1756924130319,53.30935332,210.44,210.43,0.03]
[1756924131105,52.63935332,210.44,210.43,0.03]
[1756924131417,53.30935332,210.44,210.43,0.03]
[1756924132918,4.94965832,210.43,210.42,1e-08]
[1756924133216,12.87859819,210.43,210.42,1e-08]
[1756924133419,13.54859819,210.43,210.42,1e-08]
[1756924133607,18.21393337,210.43,210.42,1e-08]
[1756924134522,22.18489058,210.43,210.42,1e-08]
[1756924136217,18.21393337,210.43,210.42,1e-08]
[1756924136419,22.18489058,210.43,210.42,1e-08]